bitfinex-derivatives/quotes_ETHF0:USTF0_20250427
["timestamp","ask_amount","ask_price","bid_price","bid_amount"]
[1745713212984,14.46531273,1847.9,1847.3,0.0085]
[1745713213189,4.28987,1847.8,1847.4,3.2078]
[1745713213384,1.08225,1847.4,1847.3,0.0085]
[1745713213589,1.08264,1846.8,1846.3,1.08285]
[1745713213790,4.29043,1846.8,1846.3,4.8188]
[1745713213994,4.29043,1846.8,1845.7,0.8284]
[1745713213995,3.2078,1846.5,1845.7,3.2078]
[1745713214193,3.2078,1846.3,1845.3,0.09415903]
[1745713214494,3.2078,1845.7,1845.3,0.09415903]
[1745713214792,1.08354,1845.3,1844.7,1.08381]
[1745713214998,3.2078,1844.9,1844.6,0.09432313]
[1745713215200,3.2078,1844.7,1844.6,1.08389]
[1745713215401,3.2078,1845.7,1844.7,7.79875605]
[1745713215697,1.08322,1845.8,1844.9,3.2078]
[1745713215892,4.8733,1845.6,1845.0,0.68294563]
[1745713216094,3.2078,1845.3,1845.0,0.71592547]
[1745713216400,4.20996273,1845.6,1845.1,4.60774753]
[1745713216595,3.2078,1845.9,1845.2,3.89150873]
[1745713216800,3.2078,1845.9,1845.4,3.2078]
[1745713217100,4.29107,1845.7,1845.3,0.71592547]
[1745713217299,1.00216273,1845.9,1844.8,3.2078]
[1745713217300,3.2078,1845.4,1844.8,3.2078]
[1745713217499,3.2078,1845.9,1845.2,3.2078]
[1745713217694,4.20996273,1845.9,1845.3,2.25856118]
[1745713217898,1.6655,1845.8,1845.4,0.68456118]
[1745713218088,1.6655,1845.8,1845.5,1.76792118]
[1745713218089,3.2078,1845.7,1845.5,1.76792118]
[1745713218295,3.2078,1845.9,1845.6,1.38292779]
[1745713218497,5.87246273,1845.9,1845.6,1.7812438]
[1745713218697,5.87246273,1845.9,1845.6,0.6979438]
[1745713218993,3.2078,1845.8,1845.7,0.6979438]
[1745713219198,4.8703,1845.8,1845.0,1.08363]
[1745713219497,3.2078,1845.6,1845.1,3.89292158]
[1745713219702,3.2078,1845.7,1845.2,2.34322158]
[1745713219899,1.6625,1845.5,1845.3,0.68499341]
[1745713220204,1.6625,1845.5,1844.8,3.2078]
[1745713220407,2.66466273,1845.5,1845.2,1.08351]
[1745713220701,5.87246273,1845.5,1845.2,1.08354]
[1745713220902,5.87246273,1845.5,1845.0,1.08365]
[1745713220903,6.95587273,1845.5,1845.0,1.08365]
[1745713221104,3.2078,1845.3,1845.1,0.68460665]
[1745713221292,1.6625,1845.2,1844.8,1.08374]
[1745713221497,1.6625,1845.2,1845.0,1.08366]
[1745713221805,2.66466273,1845.2,1844.9,1.08367]
[1745713222104,2.66466273,1845.2,1844.9,1.08371]
[1745713222292,1.6625,1845.2,1844.7,1.6581]
[1745713222496,1.6625,1845.2,1844.8,3.89168854]
[1745713222702,1.6625,1845.2,1845.1,1.0836]
[1745713223403,3.2078,1846.1,1845.2,2.70884]
[1745713223604,1.08275,1846.6,1845.9,3.2078]
[1745713223904,3.2078,1846.0,1845.5,3.2078]
[1745713224103,4.29089,1846.0,1845.6,1.76569528]
[1745713224303,3.2078,1845.8,1845.4,5.958]
[1745713224501,3.2078,1845.5,1845.4,5.958]
[1745713224706,4.2912,1845.5,1845.1,1.08359]
[1745713224898,1.6579,1845.4,1845.1,1.08359]
[1745713225098,1.6579,1845.4,1845.0,7.616]
[1745713225099,3.2078,1845.3,1845.0,8.69961]
[1745713225298,1.6579,1845.2,1845.0,1.08361]
[1745713225498,1.6579,1845.2,1844.8,11.5218]
[1745713225701,2.66006273,1845.2,1845.1,1.0836]
[1745713226007,1.6579,1845.2,1845.1,1.76662146]
[1745713226493,3.2078,1845.4,1845.3,1.08348]
[1745713226699,1.6579,1845.5,1845.4,1.08342]
[1745713226900,3.2078,1845.8,1845.5,1.08335]
[1745713227100,1.6579,1845.7,1845.4,2.7414]
[1745713227301,2.74115,1845.7,1845.3,1.08346]
[1745713227506,3.2078,1845.6,1845.2,1.0835]
[1745713227708,3.2078,1845.4,1845.2,1.08353]
[1745713227906,3.2078,1845.4,1845.2,1.08351]
[1745713228206,1.08325,1845.7,1845.0,1.6337]
[1745713228402,1.6566,1845.5,1845.4,1.08342]
[1745713229000,1.08323,1845.8,1845.4,0.68400563]
[1745713229001,3.2078,1845.8,1845.4,0.68400563]
[1745713229205,4.20996273,1845.8,1845.5,2.31757906]
[1745713229410,1.6566,1845.7,1845.6,1.08331]
[1745713229613,1.6566,1845.7,1845.5,2.71703]
[1745713229906,1.6566,1845.7,1845.6,1.08331]
[1745713230108,3.2078,1845.8,1845.6,1.08331]
[1745713230308,3.2078,1845.8,1845.5,2.71702]
[1745713230506,1.6868,1845.7,1845.5,2.71702]
[1745713230814,2.77008,1845.7,1845.4,1.0834]
[1745713231005,3.2078,1845.6,1845.1,1.5521]
[1745713231211,3.2078,1845.2,1844.8,8.314]
[1745713231412,4.8946,1845.1,1845.0,1.08364]
[1745713231710,4.8946,1845.1,1844.5,2.70976]
[1745713231711,1.08376,1844.9,1844.5,1.08392]
[1745713231902,3.2078,1845.0,1844.5,3.2078]
[1745713232106,5.41641,1845.7,1844.6,0.69077203]
[1745713232107,4.29164,1844.7,1844.6,0.69077203]
[1745713232413,4.29164,1844.7,1844.2,6.80402571]
[1745713232414,1.08407,1844.3,1844.2,6.80402571]
[1745713232904,1.08413,1844.2,1844.1,9.27399524]
[1745713233104,8.01393,1844.2,1844.1,5.56976524]
[1745713233313,1.08425,1844.0,1843.9,14.11191455]
[1745713233507,1.08423,1844.1,1843.7,6.90447615]
[1745713233705,6.24643999,1844.2,1843.7,6.90447615]
[1745713233901,1.08434,1843.9,1843.7,6.90447615]
[1745713234106,1.08436,1843.8,1843.7,6.90447615]
[1745713234298,4.29216,1843.8,1843.7,6.90447615]
[1745713234504,9.29216,1843.8,1843.7,6.90447615]
[1745713234708,2.71047,1844.2,1843.7,6.90447615]
[1745713234709,3.2078,1844.2,1843.7,6.90447615]
[1745713235213,1.08436,1843.8,1843.7,6.90447615]
[1745713235609,4.29216,1843.8,1843.7,6.90447615]
[1745713236214,3.2078,1843.8,1843.7,6.90447615]
[1745713236411,4.29221,1843.8,1843.4,1.08458]
[1745713236612,2.74405,1843.7,1843.3,3.2078]
[1745713236911,2.74405,1843.7,1843.3,4.29241]
[1745713237105,1.6596,1843.7,1843.5,1.08451]
[1745713237309,3.2078,1843.8,1843.7,1.08442]
[1745713237510,60.798,1844.4,1843.6,1.08445]
[1745713237511,1.08425,1844.0,1843.6,1.08445]
[1745713237712,1.6596,1843.9,1843.6,1.08445]
[1745713238016,4.8674,1843.9,1843.3,3.2078]
[1745713238407,5.95173,1843.9,1843.3,3.2078]
[1745713238604,1.0845,1843.6,1843.3,3.2078]
[1745713238802,3.2078,1843.7,1843.3,3.2078]
[1745713238803,4.29225,1843.7,1843.3,3.2078]
[1745713239006,1.6596,1843.6,1843.1,4.8001]
[1745713239208,1.08469,1843.3,1843.1,3.2078]
[1745713239409,2.71104,1843.8,1842.9,4.8001]
[1745713239610,1.08483,1843.0,1842.9,1.5923]
[1745713239913,3.2078,1843.4,1842.9,3.2078]
[1745713240114,1.08475,1843.2,1842.9,3.2078]
[1745713240316,3.2078,1843.4,1842.9,3.2078]
[1745713240609,5.91941,1843.4,1842.7,4.8309]
[1745713240813,11.1678,1843.4,1842.7,1.6231]
[1745713241009,3.2078,1843.5,1843.2,1.08469]
[1745713241216,3.2078,1843.7,1843.2,4.8309]
[1745713241613,3.2078,1843.7,1843.2,1.6231]
[1745713241808,1.08466,1843.3,1843.1,3.2078]
[1745713242014,1.08463,1843.4,1843.1,3.2078]
[1745713242215,2.71115,1843.7,1843.1,4.8309]
[1745713242518,1.08472,1843.2,1843.1,4.8309]
[1745713242705,1.08472,1843.2,1843.1,3.2078]
[1745713242908,1.0847,1843.3,1843.1,3.2078]
[1745713243106,2.64842,1843.2,1843.1,3.2078]
[1745713243310,2.64842,1843.2,1842.9,3.2078]
[1745713243615,2.64842,1843.2,1843.0,1.7106]
[1745713243814,1.5637,1843.2,1843.0,1.7106]
[1745713244217,2.64844,1843.2,1843.0,1.7106]
[1745713244418,3.2078,1843.5,1843.1,3.2078]
[1745713244714,0.00693429,1843.4,1843.2,3.48254622]
[1745713244914,0.00693429,1843.4,1843.2,2.39784622]
[1745713245116,0.00693429,1843.4,1843.3,4.29246]
[1745713245418,0.00693429,1843.4,1843.3,5.6668487]
[1745713245609,1.08429,1844.0,1843.3,9.58193479]
[1745713245818,1.5637,1844.2,1843.8,3.2078]
[1745713246010,1.08431,1843.9,1843.8,3.2078]
[1745713246419,1.08428,1844.0,1843.8,3.2078]
[1745713246713,4.2919,1844.3,1844.0,1.08422]
[1745713246921,1.0841,1844.3,1844.0,4.29202]
[1745713247108,1.08413,1844.2,1844.1,1.6985]
[1745713247417,1.08411,1844.3,1844.0,3.2078]
[1745713247616,1.5874,1844.4,1844.1,1.6985]
[1745713247818,1.08412,1844.3,1844.1,1.6985]
[1745713248415,1.0841,1844.3,1844.1,1.6985]
[1745713248622,1.08411,1844.3,1844.1,1.6985]
[1745713248823,1.5874,1844.4,1844.1,1.6985]
[1745713248824,1.08413,1844.2,1844.1,1.6985]
[1745713249215,1.08425,1844.0,1843.8,3.2078]
[1745713249415,1.5874,1844.4,1844.1,1.5677]
[1745713249621,1.08413,1844.2,1844.1,1.5677]
[1745713249923,1.08411,1844.3,1844.1,1.5677]
[1745713250121,1.5874,1844.4,1844.1,1.5677]
[1745713250419,3.2078,1844.7,1844.5,1.08395]
[1745713250615,1.08384,1844.7,1844.6,1.5677]
[1745713251215,1.08384,1844.7,1844.4,3.2078]
[1745713251216,1.08395,1844.5,1844.4,3.2078]
[1745713251417,1.5648,1844.6,1844.0,4.7755]
[1745713251617,1.08419,1844.1,1844.0,4.7755]
[1745713251820,1.08419,1844.1,1844.0,5.46298694]
[1745713252014,1.08419,1844.1,1844.0,3.89528694]
[1745713252215,6.08419,1844.1,1844.0,0.68055265]
[1745713252419,1.08434,1843.9,1843.6,1.08443]
[1745713252618,1.6371,1844.0,1843.5,3.2078]
[1745713252817,1.08448,1843.6,1843.5,3.2078]
[1745713253014,1.0846,1843.4,1843.3,4.8118]
[1745713253219,1.08472,1843.2,1843.1,3.2078]
[1745713253726,3.2078,1843.4,1843.0,1.08482]
[1745713253727,1.08469,1843.3,1843.0,1.08482]
[1745713253925,1.08469,1843.3,1843.1,1.604]
[1745713253926,1.08472,1843.2,1843.1,1.604]
[1745713254118,1.08472,1843.2,1842.9,4.29269]
[1745713254315,3.2078,1843.4,1843.0,0.68930503]
[1745713254523,1.6371,1843.3,1842.9,4.29268]
[1745713254723,2.72179,1843.3,1843.0,3.37851181]
[1745713254924,1.08478,1843.1,1843.0,1.604]
[1745713255324,1.6371,1843.3,1842.9,3.2078]
[1745713255529,1.0848,1843.1,1843.0,1.5897]
[1745713255921,1.08483,1843.0,1842.9,3.2078]
[1745713256229,1.08493,1842.9,1842.7,3.2078]
[1745713256525,1.08493,1842.9,1842.8,0.6899851]
[1745713256924,1.08493,1842.9,1842.5,3.2078]
[1745713256925,1.08507,1842.6,1842.5,3.2078]
[1745713257120,1.08507,1842.6,1842.5,5.48781057]
[1745713257317,1.08519,1842.4,1842.3,3.2078]
[1745713257724,1.08531,1842.2,1842.1,4.7975]
[1745713257923,1.08531,1842.2,1842.1,5.48850326]
[1745713258124,1.6803,1842.5,1842.1,5.48850326]
[1745713258428,1.6803,1842.5,1842.2,1.6212]
[1745713258623,1.08525,1842.3,1842.2,1.6212]
[1745713258828,1.08525,1842.3,1842.2,2.3123086]
[1745713259029,1.08521,1842.4,1842.2,0.6911086]
[1745713259229,3.722,1842.6,1842.3,3.89903563]
[1745713259530,1.08513,1842.5,1842.4,2.31243563]
[1745713259725,5.2902,1842.6,1842.1,3.2078]
[1745713259927,1.08525,1842.3,1842.2,0.69217181]
[1745713260427,1.5682,1842.4,1842.2,0.69217181]
[1745713260428,1.08523,1842.4,1842.2,0.69217181]
[1745713260628,1.08519,1842.4,1842.3,0.69217181]
[1745713261039,3.2078,1843.2,1842.3,14.85797181]
[1745713261234,1.08456,1843.5,1843.2,1.08467]
[1745713261430,3.2078,1843.6,1843.0,3.2078]
[1745713261431,4.29233,1843.6,1843.3,3.46921181]
[1745713261738,1.08454,1843.5,1843.4,2.38584518]
[1745713261933,3.2078,1843.6,1843.4,3.47042518]
[1745713262239,4.2923,1843.6,1843.5,0.69344518]
[1745713262438,4.2923,1843.6,1843.5,2.38584518]
[1745713262839,4.2923,1843.6,1843.5,0.69344518]
[1745713263035,3.2078,1844.3,1843.5,3.90124518]
[1745713263341,1.08428,1844.0,1843.9,3.2078]
[1745713263529,1.08428,1844.0,1843.9,3.90067366]
[1745713264137,1.6206,1844.3,1844.0,1.08423]
[1745713264138,2.70469,1844.3,1844.0,1.08423]
[1745713264340,1.08409,1844.3,1844.1,0.69287366]
[1745713264637,1.08417,1844.2,1843.9,4.29209]
[1745713264839,1.08409,1844.3,1844.0,0.6923525]
[1745713265032,1.08413,1844.2,1844.1,0.6923525]
[1745713265236,1.08411,1844.3,1844.1,0.6923525]
[1745713265537,7.439,1844.6,1844.2,0.6923525]
[1745713265832,8.5229,1844.6,1844.3,3.9001525]
[1745713266031,1.08395,1844.5,1844.4,0.6923525]
[1745713266238,4.29175,1844.5,1844.4,1.38361783]
[1745713266437,7.77595,1844.5,1844.4,0.69126533]
[1745713266940,2.77595,1844.5,1844.4,0.69126533]
[1745713267230,3.722,1844.5,1844.4,1.38302457]
[1745713267636,4.80595,1844.5,1844.4,1.38302457]
[1745713268037,8.01375,1844.5,1844.4,0.69126533]
[1745713268230,4.80595,1844.5,1844.4,0.69126533]
[1745713268829,8.01375,1844.5,1844.4,0.69126533]
[1745713269236,8.01375,1844.5,1844.4,1.38254661]
[1745713269638,8.01375,1844.5,1844.4,0.69126533]
[1745713270839,1.08402,1844.4,1844.2,1.08412]
[1745713271139,1.08417,1844.2,1844.0,3.2078]
[1745713271329,1.08417,1844.2,1844.1,0.69117521]
[1745713271535,1.08417,1844.2,1844.1,1.38192019]
[1745713271735,1.08417,1844.2,1844.1,0.69074498]
[1745713272235,1.08442,1843.7,1843.6,4.2356]
[1745713272433,10.3988,1843.8,1843.3,3.2078]
[1745713272635,1.08472,1843.2,1842.9,4.29267]
[1745713272842,1.08478,1843.1,1843.0,0.69206149]
[1745713273044,1.08478,1843.1,1843.0,1.38399345]
[1745713273538,1.08478,1843.1,1843.0,0.69236535]
[1745713273739,1.08488,1843.0,1842.9,3.2078]
[1745713273934,1.0848,1843.1,1842.9,3.90018194]
[1745713274237,1.08481,1843.1,1843.0,0.69190417]
[1745713274442,1.08481,1843.1,1843.0,1.38415646]
[1745713274635,1.08481,1843.1,1843.0,0.69190417]
[1745713275041,1.08481,1843.1,1843.0,0.69231606]
[1745713275245,4.80681,1843.1,1843.0,0.69231606]
[1745713275541,4.80678,1843.1,1843.0,0.69232186]
[1745713276243,1.08478,1843.1,1843.0,0.69172123]
[1745713276635,1.55,1843.3,1843.0,0.69204015]
[1745713276832,6.9298,1843.4,1843.2,1.08472]
[1745713277036,1.08469,1843.3,1843.0,1.08482]
[1745713277245,1.08474,1843.2,1843.1,0.69185781]
[1745713277539,1.08483,1843.1,1842.9,3.2078]
[1745713277739,1.6305,1843.3,1842.9,3.2078]
[1745713277947,1.08476,1843.2,1842.9,4.29265]
[1745713278140,1.08476,1843.2,1843.0,1.77682174]
[1745713278340,11.48444,1843.4,1843.1,0.69192884]
[1745713278639,11.48444,1843.4,1842.9,4.29266]
[1745713278640,1.08474,1843.2,1842.9,4.29266]
[1745713278938,1.08445,1843.7,1843.1,3.2078]
[1745713279144,1.08445,1843.7,1843.4,1.08458]
[1745713279347,1.08448,1843.6,1843.3,4.29242]
[1745713279545,2.71107,1843.7,1843.1,3.2078]
[1745713279748,1.08454,1843.5,1843.4,0.69139547]
[1745713280141,4.80654,1843.5,1843.4,0.69139547]
[1745713280342,1.08466,1843.3,1843.2,3.2078]
[1745713280541,1.08475,1843.2,1843.0,3.2078]
[1745713280747,1.0847,1843.3,1843.1,1.38430615]
[1745713281049,1.08466,1843.3,1843.2,0.69229451]
[1745713281249,1.08458,1843.5,1843.2,4.15184875]
[1745713281547,4.9103,1843.6,1843.2,2.37483424]
[1745713281738,1.08466,1843.3,1843.2,2.37483424]
[1745713281942,1.08466,1843.3,1843.2,3.06733315]
[1745713282145,1.08462,1843.4,1843.2,3.06733315]
[1745713282349,1.08462,1843.4,1843.2,3.45952424]
[1745713282541,1.08466,1843.3,1843.2,2.37483424]
[1745713282744,1.08466,1843.3,1843.2,2.37537957]
[1745713282944,1.08478,1843.1,1843.0,3.2078]
[1745713283448,1.08495,1842.8,1842.7,1.7139]
[1745713283642,4.26777,1843.0,1842.2,3.2078]
[1745713283950,4.29275,1842.8,1842.7,0.69248694]
[1745713284149,1.08513,1842.5,1842.4,1.7139]
[1745713284545,1.08525,1842.3,1842.2,3.2078]
[1745713284743,3.2078,1842.6,1842.2,3.2078]
[1745713284949,1.08525,1842.3,1842.2,3.2078]
[1745713285748,1.08525,1842.3,1842.1,1.7139]
[1745713285949,1.08525,1842.3,1842.1,2.79926]
[1745713286354,1.08525,1842.3,1842.2,1.5948]
[1745713286940,6.949,1842.5,1842.0,3.2078]
[1745713287147,3.722,1842.3,1841.8,3.2078]
[1745713287347,1.08542,1842.0,1841.9,1.5948]
[1745713287948,1.08559,1841.8,1841.5,2.07249]
[1745713288252,1.0856,1841.7,1841.6,2.36902804]
[1745713288547,1.0856,1841.7,1841.6,0.69212804]
[1745713289055,1.08578,1841.4,1841.1,4.29372]
[1745713289258,6.949,1841.4,1840.8,4.29389]
[1745713289452,1.08613,1840.8,1840.7,14.11191455]
[1745713289643,1.08613,1840.8,1840.7,17.31971455]
[1745713289956,3.2078,1841.1,1840.7,14.11191455]
[1745713290248,1.08613,1840.8,1840.7,15.78881455]
[1745713290457,3.2078,1841.1,1840.7,15.78881455]
[1745713290648,1.08606,1841.0,1840.7,16.87497455]
[1745713290848,1.08611,1840.9,1840.7,15.78881455]
[1745713291054,3.2078,1841.1,1840.7,15.78881455]
[1745713291255,1.08604,1841.0,1840.7,16.87499455]
[1745713291453,1.08611,1840.9,1840.7,15.78881455]
[1745713291654,1.08613,1840.8,1840.7,15.78881455]
[1745713291957,1.08613,1840.8,1840.7,1.6769]
[1745713292153,3.722,1840.8,1840.6,3.2078]
[1745713292353,4.80816,1840.8,1840.6,3.2078]
[1745713292755,3.722,1840.8,1840.7,1.08619]
[1745713292953,3.722,1840.8,1840.7,1.686]
[1745713293254,1.08608,1840.9,1840.7,1.686]
[1745713293658,1.08613,1840.8,1840.7,1.686]
[1745713293861,64.1258,1840.9,1839.9,3.2078]
[1745713294159,3.2078,1840.3,1839.9,3.2078]
[1745713294349,1.08668,1839.9,1839.7,1.686]
[1745713294556,1.08672,1839.8,1839.7,1.686]
[1745713294751,6.952,1840.3,1839.7,1.686]
[1745713294950,3.2078,1840.4,1839.9,3.2078]
[1745713294951,1.08651,1840.2,1839.9,3.2078]
[1745713295259,1.08654,1840.1,1840.0,1.5717]
[1745713296161,4.80854,1840.1,1840.0,1.5717]
[1745713297155,1.08654,1840.1,1840.0,1.5717]
[1745713297554,3.2078,1841.0,1840.0,6.5717]
[1745713297750,3.2078,1841.0,1840.6,3.2078]
[1745713298054,1.08613,1840.8,1840.7,1.5873]
[1745713298554,3.2078,1841.3,1840.7,7.67348]
[1745713298856,3.2078,1841.5,1841.0,3.2078]
[1745713299158,1.08584,1841.3,1841.1,1.5873]
[1745713299955,6.713,1841.7,1841.3,1.0858]
[1745713300258,1.08572,1841.5,1841.4,1.5873]
[1745713300451,1.0857,1841.6,1841.4,1.5873]
[1745713300649,3.2078,1841.8,1841.4,1.5873]
[1745713300852,1.08544,1842.0,1841.7,4.29335]
[1745713301054,9.9208,1842.4,1841.8,1.5486]
[1745713301055,1.08539,1842.1,1841.8,1.5486]
[1745713301254,1.6548,1842.3,1841.8,2.63413]
[1745713301455,1.08539,1842.1,1841.9,4.7564]
[1745713301649,1.08542,1842.0,1841.9,4.7564]
[1745713301855,1.08542,1842.0,1841.9,1.5486]
[1745713302360,1.08542,1842.0,1841.3,4.2351]
[1745713302361,8.2078,1842.0,1841.3,4.2351]
[1745713302559,1.0856,1841.7,1841.6,1.5486]
[1745713302858,3.2078,1841.8,1841.3,3.2078]
[1745713303054,1.08562,1841.7,1841.4,1.5486]
[1745713303249,1.0857,1841.6,1841.4,1.5486]
[1745713303855,1.08572,1841.5,1841.4,1.5486]
[1745713304955,1.6715,1841.7,1841.4,1.5486]
[1745713305155,6.712,1841.8,1841.5,3.2078]
[1745713305355,7.79758,1841.8,1841.6,1.5944]
[1745713305655,1.08543,1842.0,1841.7,4.29337]
[1745713305858,3.722,1842.3,1842.0,1.08539]
[1745713306058,3.722,1842.3,1842.1,4.8022]
[1745713306253,1.08515,1842.5,1842.2,2.67971]
[1745713307157,5.92063,1842.5,1841.7,3.2078]
[1745713307364,1.08547,1842.0,1841.8,1.6904]
[1745713307555,1.08548,1841.9,1841.8,1.6904]
[1745713307951,1.08566,1841.6,1841.5,3.2078]
[1745713308367,3.722,1841.9,1841.5,3.2078]
[1745713308663,1.08578,1841.4,1841.3,3.2078]
[1745713308861,1.08576,1841.5,1841.3,3.2078]
[1745713309364,1.08578,1841.4,1841.3,3.2078]
[1745713310066,1.08578,1841.4,1841.3,3.89660548]
[1745713310362,1.08578,1841.4,1841.3,0.68880548]
[1745713310661,2.71475,1841.2,1840.3,3.2078]
[1745713310965,7.79693,1841.2,1840.8,4.29388]
[1745713311264,6.711,1841.6,1841.0,3.2078]
[1745713311462,3.2078,1841.4,1840.8,3.2078]
[1745713311655,2.71504,1841.0,1840.3,3.2078]
[1745713311856,11.5045,1840.9,1840.1,3.2078]
[1745713312057,4.29399,1840.7,1839.9,6.33402]
[1745713312362,1.0866,1840.0,1839.9,5.2474]
[1745713312563,1.08651,1840.2,1839.9,2.0396]
[1745713313367,10.9268,1840.9,1839.9,2.0396]
[1745713313664,1.0863,1840.6,1840.2,1.08647]
[1745713313865,1.6034,1840.8,1839.9,2.0396]
[1745713313866,3.2078,1840.7,1839.9,2.0396]
[1745713314065,1.08645,1840.3,1840.1,3.2078]
[1745713314259,1.0864,1840.4,1840.1,3.2078]
[1745713314457,1.0864,1840.4,1840.0,4.2944]
[1745713314662,1.08644,1840.3,1840.0,3.2078]
[1745713314969,1.08631,1840.5,1840.1,1.08654]
[1745713315168,1.08638,1840.4,1840.1,0.01631021]
[1745713315670,1.08638,1840.4,1840.1,1.10285021]
[1745713315867,1.08649,1840.2,1840.1,0.01631021]
[1745713317075,1.08649,1840.2,1840.1,0.03262042]
[1745713317566,1.08649,1840.2,1839.1,3.2078]
[1745713317567,2.71641,1840.1,1839.1,3.2078]
[1745713317770,1.08689,1839.6,1839.3,3.2078]
[1745713318066,1.08689,1839.6,1839.2,1.08704]
[1745713318270,1.08693,1839.5,1839.4,0.01634087]
[1745713318458,1.08688,1839.6,1839.4,0.01634087]
[1745713318663,1.08685,1839.6,1839.5,0.02537156]
[1745713319058,4.29457,1839.8,1839.5,0.02537156]
[1745713319258,4.29455,1839.8,1839.5,0.02537156]
[1745713319667,4.29454,1839.8,1839.5,1.11225156]
[1745713319866,4.29454,1839.8,1839.6,0.02537156]
[1745713320059,9.6828,1840.3,1839.7,3.2078]
[1745713320264,2.71622,1840.2,1839.6,0.02537156]
[1745713320468,1.08678,1839.7,1839.6,0.02537156]
[1745713322268,1.08702,1839.3,1839.2,3.2078]
[1745713322473,1.08693,1839.5,1839.2,1.08705]
[1745713322774,1.08693,1839.5,1839.3,2.24228775]
[1745713322968,1.6137,1839.6,1839.3,2.24228775]
[1745713323173,1.08683,1839.7,1839.4,2.64414]
[1745713323773,0.60679784,1839.7,1839.4,2.64414]
[1745713323975,1.08678,1839.7,1839.5,3.2078]
[1745713324173,1.08678,1839.7,1839.4,2.64414]
[1745713324174,6.475,1839.8,1839.3,3.2078]
[1745713324475,1.6137,1839.7,1839.3,3.2078]
[1745713324670,3.2078,1840.2,1839.8,1.0867]
[1745713324866,1.0866,1840.0,1839.9,1.7047]
[1745713325176,5.95771,1840.2,1839.9,3.47578276]
[1745713325365,1.08656,1840.1,1839.9,2.38913276]
[1745713325671,1.08658,1840.1,1839.9,2.38913276]
[1745713325866,1.0866,1840.0,1839.9,0.68443276]
[1745713326070,3.2078,1840.0,1839.6,1.7047]
[1745713326269,1.08676,1839.8,1839.6,1.7047]
[1745713326473,2.71731,1839.5,1838.8,3.2078]
[1745713326669,4.29482,1839.3,1839.1,1.08712]
[1745713326873,1.08712,1839.2,1838.9,2.38939018]
[1745713327075,1.08711,1839.2,1839.0,3.2078]
[1745713327271,1.08711,1839.2,1839.1,1.7047]
[1745713327775,1.08714,1839.1,1838.8,1.08728]
[1745713328067,1.08725,1838.9,1838.8,1.6442]
[1745713328473,4.29503,1839.0,1838.8,1.6442]
[1745713328677,7.5631,1839.2,1838.9,1.08721]
[1745713328872,1.08706,1839.3,1839.0,2.73138]
[1745713329062,1.08708,1839.2,1839.0,1.6442]
[1745713329575,3.722,1839.3,1839.0,4.852]
[1745713329968,3.722,1839.3,1839.2,1.08708]
[1745713330166,1.6276,1839.5,1839.0,4.852]
[1745713330377,6.477,1839.6,1839.4,1.08696]
[1745713330577,3.2078,1839.5,1839.0,3.2078]
[1745713330876,4.29487,1839.3,1839.0,1.08718]
[1745713331172,4.29487,1839.3,1838.7,1.7163]
[1745713331173,3.722,1839.3,1839.2,4.29488]
[1745713331676,3.722,1839.3,1839.2,6.01118]
[1745713332176,6.477,1839.6,1839.5,1.0869]
[1745713332568,1.6789,1839.7,1839.5,1.0869]
[1745713332871,1.6789,1839.7,1839.6,1.08684]
[1745713333176,60.987,1839.9,1839.8,1.08672]
[1745713333367,6.478,1840.0,1839.9,1.08666]
[1745713333769,8.8338,1840.4,1840.1,1.08653]
[1745713333972,61.0,1840.7,1840.2,1.7052]
[1745713334173,5.90786,1840.6,1840.3,1.08639]
[1745713334370,3.2078,1840.6,1840.0,3.2078]
[1745713334679,1.08646,1840.3,1840.0,1.08658]
[1745713334865,2.70014,1840.5,1840.2,1.08648]
[1745713335070,2.70014,1840.5,1840.3,1.7052]
[1745713335270,6.42214,1840.5,1840.3,1.7052]
[1745713335476,6.42214,1840.5,1840.3,2.79162]
[1745713335663,5.3358,1840.5,1840.3,2.79159]
[1745713335867,5.3358,1840.5,1840.4,1.08637]
[1745713335868,3.722,1840.5,1840.4,1.08637]
[1745713336068,3.2078,1841.3,1840.4,6.7052]
[1745713336269,1.08595,1841.1,1840.7,4.29394]
[1745713336471,2.69983,1841.0,1840.8,1.7052]
[1745713336665,6.241,1841.4,1840.8,1.7052]
[1745713336867,6.241,1841.4,1841.2,1.0859]
[1745713337074,6.241,1841.4,1841.2,1.08588]
[1745713337378,6.241,1841.4,1841.3,1.08584]
[1745713337877,6.241,1841.4,1841.2,2.73386]
[1745713338570,1.0859,1841.2,1841.1,3.2078]
[1745713339076,1.08598,1841.1,1840.9,3.2078]
[1745713339278,1.08601,1841.0,1840.9,3.2078]
[1745713339466,1.6116,1841.1,1840.7,1.08618]
[1745713339672,1.6116,1840.9,1840.6,3.2078]
[1745713339871,1.08617,1840.8,1840.6,3.2078]
[1745713340082,1.5962,1840.7,1840.6,4.29405]
[1745713340379,1.5962,1840.7,1840.6,3.2078]
[1745713340979,2.68239,1840.7,1840.6,3.2078]
[1745713341173,6.40439,1840.7,1840.6,3.2078]
[1745713341576,5.3182,1840.7,1840.6,3.2078]
[1745713341781,3.722,1840.7,1840.6,3.2078]
[1745713342073,1.5962,1841.0,1840.6,3.2078]
[1745713342280,1.08607,1840.9,1840.7,2.65994]
[1745713342579,1.08607,1840.9,1840.7,2.65999]
[1745713343183,1.08613,1840.8,1840.6,3.2078]
[1745713343378,1.08619,1840.7,1840.6,3.2078]
[1745713343684,1.568,1840.8,1840.3,2.64179]
[1745713343685,1.08637,1840.4,1840.3,1.5554]
[1745713343870,3.2078,1840.4,1840.0,3.2078]